lending/lending_fUSD_20250408
["ID","MTS","AMOUNT","RATE_DAILY","PERIOD"]
[357531322,1744131085482,-500.0,0.00027945,2]
[357531323,1744131085492,-500.0,0.00027945,2]
[357531324,1744131085501,-624.4,0.00027945,2]
[357531325,1744131085511,-500.0,0.00027945,2]
[357531326,1744131085521,-500.0,0.00027945,2]
[357531327,1744131085532,-500.0,0.00027945,2]
[357531328,1744131085541,-500.0,0.00027945,2]
[357531329,1744131085551,-547.36,0.00027945,2]
[357531330,1744131085560,-497.52757697,0.00027945,2]
[357531331,1744131085569,-500.0,0.00027945,2]
[357531332,1744131085579,-500.0,0.00027945,2]
[357531333,1744131085589,-500.0,0.00027945,2]
[357531334,1744131085598,-1221.73,0.00027945,2]
[357531335,1744131085608,-500.0,0.00027945,2]
[357531336,1744131085617,-500.0,0.00027945,2]
[357531337,1744131085627,-541.77,0.00027945,2]
[357531338,1744131085636,-1049.21,0.00027945,2]
[357531339,1744131085645,-500.0,0.00027945,2]
[357531340,1744131085655,-169.335006,0.00027945,7]
[357531341,1744131085665,-833.03,0.00027945,2]
[357531342,1744131085675,-500.0,0.00027945,2]
[357531343,1744131085685,-166.83605884,0.00027945,2]
[357531344,1744131085695,-947.72,0.00027945,2]
[357531345,1744131085704,-915.59,0.00027945,2]
[357531346,1744131085713,-151.0,0.00027945,7]
[357531347,1744131085723,-500.0,0.00027945,2]
[357531348,1744131085733,-500.0,0.00027945,2]
[357531349,1744131085742,-2154.22,0.00027945,2]
[357531350,1744131085751,-526.17154845,0.00027945,2]
[357531351,1744131085761,-151.0,0.00027945,7]
[357531352,1744131085770,-500.0,0.00027945,2]
[357531353,1744131085782,-715.09,0.00027945,2]
[357531354,1744131085792,-681.07,0.00027945,2]
[357531355,1744131085802,-806.29,0.00027945,2]
[357531356,1744131085811,-500.0,0.00027945,2]
[357531357,1744131085820,-517.11920183,0.00027945,2]
[357531358,1744131085830,-643.95112561,0.00027945,2]
[357531359,1744131085839,-536.64490097,0.00027945,2]
[357531360,1744131085849,-596.17,0.00027945,2]
[357531361,1744131085859,-500.0,0.00027945,2]
[357531362,1744131085868,-643.21,0.00027945,2]
[357531363,1744131085879,-509.78140573,0.00027945,2]
[357531364,1744131085889,-623.11,0.00027945,2]
[357531365,1744131085899,-895.87,0.00027945,2]
[357531366,1744131085909,-591.63,0.00027945,2]
[357531367,1744131085920,-500.0,0.00027945,2]
[357531368,1744131085930,-500.0,0.00027945,2]
[357531369,1744131085939,-840.88,0.00027945,2]
[357531370,1744131085949,-500.0,0.00027945,2]
[357531371,1744131085959,-500.0,0.00027945,2]
[357531372,1744131085968,-500.0,0.00027945,2]
[357531373,1744131085978,-915.65,0.00027945,2]
[357531374,1744131085987,-151.0,0.00027945,7]
[357531375,1744131085997,-500.0,0.00027945,2]
[357531376,1744131086007,-6189.26,0.00027945,2]
[357531377,1744131086016,-2601.54,0.00027945,2]
[357531378,1744131086026,-500.0,0.00027945,2]
[357531379,1744131086040,-1470.66,0.00027945,2]
[357531380,1744131086049,-500.0,0.00027945,2]
[357531381,1744131086059,-500.0,0.00027945,2]
[357531382,1744131086071,-1161.33,0.00027945,2]
[357531383,1744131086083,-557.06,0.00027945,2]
[357531384,1744131086093,-500.0,0.00027945,2]
[357531385,1744131086102,-238.73352323,0.00027945,2]
[357531386,1744131086114,-500.0,0.00027945,2]
[357531387,1744131086124,-500.0,0.00027945,2]
[357531388,1744131086133,-748.03,0.00027945,2]
[357531389,1744131086143,-528.24545865,0.00027945,2]
[357531390,1744131086152,-1784.68,0.00027945,2]
[357531391,1744131086163,-500.0,0.00027945,2]
[357531392,1744131086172,-500.0,0.00027945,2]
[357531393,1744131086182,-736.96,0.00027945,2]
[357531394,1744131086191,-802.54,0.00027945,2]
[357531395,1744131086201,-500.0,0.00027945,2]
[357531396,1744131086211,-500.0,0.00027945,2]
[357531397,1744131086220,-565.95302076,0.00027945,2]
[357531398,1744131086229,-500.0,0.00027945,2]
[357531399,1744131086238,-528.16,0.00027945,2]
[357531400,1744131086248,-513.67470815,0.00027945,2]
[357531401,1744131086257,-1759.78,0.00027945,2]
[357531402,1744131086266,-359.8642513,0.00027945,2]
[357531403,1744131086275,-880.64,0.00027945,2]
[357531404,1744131086286,-878.89,0.00027945,2]
[357531405,1744131086295,-500.0,0.00027945,2]
[357531406,1744131086304,-939.58,0.00027945,2]
[357531407,1744131086314,-735.03,0.00027945,2]
[357531408,1744131086324,-524.35,0.00027945,2]
[357531409,1744131086333,-500.0,0.00027945,2]
[357531410,1744131086343,-508.18435171,0.00027945,2]
[357531411,1744131086352,-500.0,0.00027945,2]
[357531412,1744131086361,-500.0,0.00027945,2]
[357531413,1744131086371,-1127.76,0.00027945,2]
[357531414,1744131086380,-177.4065769,0.00027945,2]
[357531415,1744131086389,-180.79990856,0.00027945,2]
[357531416,1744131086398,-500.0,0.00027945,2]
[357531417,1744131086407,-500.0,0.00027945,2]
[357531418,1744131086417,-950.17,0.00027945,2]
[357531419,1744131086426,-500.0,0.00027945,2]
[357531420,1744131086435,-1017.57,0.00027945,2]
[357531421,1744131086444,-500.0,0.00027945,2]
[357531422,1744131086453,-500.0,0.00027945,2]
[357531423,1744131086463,-6178.64,0.00027945,2]
[357531424,1744131086472,-396.28,0.00027945,2]
[357531425,1744131086482,-513.55,0.00027945,2]
[357531426,1744131086491,-500.0,0.00027945,2]
[357531427,1744131086500,-1089.76,0.00027945,2]
[357531428,1744131086509,-500.0,0.00027945,2]
[357531429,1744131086518,-549.65,0.00027945,2]
[357531430,1744131086528,-578.6,0.00027945,2]
[357531431,1744131086539,-841.6,0.00027945,2]
[357531432,1744131086549,-1940.65,0.00027945,2]
[357531433,1744131086558,-500.0,0.00027945,2]
[357531434,1744131086567,-671.05,0.00027945,2]
[357531435,1744131086577,-500.0,0.00027945,2]
[357531436,1744131086586,-3839.98,0.00027945,2]
[357531437,1744131086596,-500.0,0.00027945,2]
[357531438,1744131086606,-500.0,0.00027945,2]
[357531439,1744131086615,-1739.52,0.00027945,2]
[357531440,1744131086625,-558.9,0.00027945,2]
[357531441,1744131086635,-500.0,0.00027945,2]
[357531442,1744131086644,-500.0,0.00027945,2]
[357531443,1744131086654,-500.0,0.00027945,2]
[357531444,1744131086664,-180.004315,0.00027945,7]
[357531445,1744131086673,-853.97,0.00027945,2]
[357531446,1744131086683,-734.69,0.00027945,2]
[357531447,1744131086692,-727.58,0.00027945,2]
[357531448,1744131086702,-500.0,0.00027945,2]
[357531449,1744131086711,-257.33168656,0.00027945,2]
[357531450,1744131086721,-500.0,0.00027945,2]
[357531451,1744131086731,-1008.41,0.00027945,2]
[357531452,1744131086741,-500.0,0.00027945,2]
[357531453,1744131086751,-500.0,0.00027945,2]
[357531454,1744131086760,-180.004315,0.00027945,7]
[357531455,1744131086770,-990.1,0.00027945,2]
[357531456,1744131086780,-500.0,0.00027945,2]
[357531457,1744131086791,-510.8330501,0.00027945,2]
[357531458,1744131086800,-737.46,0.00027945,2]
[357531459,1744131086810,-880.15,0.00027945,2]
[357531460,1744131086819,-825.98,0.00027945,2]
[357531461,1744131086829,-500.0,0.00027945,2]
[357531462,1744131086838,-872.33,0.00027945,2]
[357531463,1744131086847,-506.13,0.00027945,2]
[357531464,1744131086856,-500.0,0.00027945,2]
[357531465,1744131086866,-327.89209804,0.00027945,2]
[357531466,1744131086875,-2261.1,0.00027945,2]
[357531467,1744131086884,-500.0,0.00027945,2]
[357531468,1744131086893,-500.0,0.00027945,2]
[357531469,1744131086903,-1830.5,0.00027945,2]
[357531470,1744131086912,-2351.91,0.00027945,2]
[357531471,1744131086922,-500.0,0.00027945,2]
[357531472,1744131086931,-727.88,0.00027945,2]
[357531473,1744131086940,-535.0548447,0.00027945,2]
[357531474,1744131086950,-986.07,0.00027945,2]
[357531475,1744131086959,-1859.52,0.00027945,2]
[357531476,1744131086969,-665.51,0.00027945,2]
[357531477,1744131086979,-593.3,0.00027945,2]
[357531478,1744131086988,-500.0,0.00027945,2]
[357531479,1744131086998,-500.0,0.00027945,2]
[357531480,1744131087007,-1483.68,0.00027945,2]
[357531481,1744131087017,-505.33393857,0.00027945,2]
[357531482,1744131087027,-500.0,0.00027945,2]
[357531483,1744131087120,-500.0,0.00027945,2]
[357531484,1744131087132,-4169.04,0.00027945,2]
[357531485,1744131087142,-1258.57,0.00027945,2]
[357531486,1744131087152,-500.0,0.00027945,2]
[357531487,1744131087164,-524.58,0.00027945,2]
[357531488,1744131087174,-500.0,0.00027945,2]
[357531489,1744131087183,-646.63,0.00027945,2]
[357531490,1744131087193,-500.0,0.00027945,2]
[357531491,1744131087202,-500.0,0.00027945,2]
[357531492,1744131087211,-808.53,0.00027945,2]
[357531493,1744131087220,-1146.51,0.00027945,2]
[357531494,1744131087230,-500.0,0.00027945,2]
[357531495,1744131087239,-535.91,0.00027945,2]
[357531496,1744131087248,-575.91408914,0.00027945,2]
[357531497,1744131087258,-24279.06,0.00027945,2]
[357531498,1744131087267,-500.0,0.00027945,2]
[357531499,1744131087276,-1000.0,0.00027945,2]
[357531500,1744131087287,-500.0,0.00027945,2]
[357531501,1744131087296,-500.0,0.00027945,2]
[357531502,1744131087305,-500.0,0.00027945,2]
[357531503,1744131087314,-500.0,0.00027945,2]
[357531504,1744131087324,-500.0,0.00027945,2]
[357531505,1744131087334,-500.0,0.00027945,2]
[357531506,1744131087344,-500.0,0.00027945,2]
[357531507,1744131087353,-632.96,0.00027945,2]
[357531508,1744131087363,-1842.22,0.00027945,2]
[357531509,1744131087372,-500.0,0.00027945,2]
[357531510,1744131087381,-892.34,0.00027945,2]
[357531511,1744131087390,-921.97,0.00027945,2]
[357531512,1744131087400,-575.39,0.00027945,2]
[357531513,1744131087409,-500.0,0.00027945,2]
[357531514,1744131087418,-735.43,0.00027945,2]
[357531515,1744131087427,-500.0,0.00027945,2]
[357531516,1744131087437,-1216.92,0.00027945,2]
[357531517,1744131087446,-500.0,0.00027945,2]
[357531518,1744131087456,-500.0,0.00027945,2]
[357531519,1744131087465,-589.43,0.00027945,2]
[357531520,1744131087475,-500.0,0.00027945,2]
[357531521,1744131087485,-500.0,0.00027945,2]
[357531522,1744131087494,-500.0,0.00027945,2]
[357531523,1744131087503,-500.0,0.00027945,2]
[357531524,1744131087513,-500.0,0.00027945,2]
[357531525,1744131087522,-1299.3,0.00027945,2]
[357531526,1744131087535,-646.32,0.00027945,2]
[357531527,1744131087544,-500.0,0.00027945,2]
[357531528,1744131087554,-500.0,0.00027945,2]
[357531529,1744131087564,-616.22,0.00027945,2]
[357531530,1744131087574,-4391.56,0.00027945,2]
[357531531,1744131087583,-500.0,0.00027945,2]
[357531532,1744131087593,-735.03,0.00027945,2]
[357531533,1744131087602,-830.9,0.00027945,2]
[357531534,1744131087613,-500.0,0.00027945,2]
[357531535,1744131087623,-573.44,0.00027945,2]
[357531536,1744131087633,-542.44,0.00027945,2]
[357531537,1744131087642,-1398.27,0.00027945,2]
[357531538,1744131087653,-500.0,0.00027945,2]
[357531539,1744131087663,-500.0,0.00027945,2]
[357531540,1744131087674,-500.0,0.00027945,2]
[357531541,1744131087683,-500.0,0.00027945,2]
[357531542,1744131087693,-500.0,0.00027945,2]
[357531543,1744131087702,-500.0,0.00027945,2]
[357531544,1744131087712,-763.62,0.00027945,2]
[357531545,1744131087721,-500.0,0.00027945,2]
[357531546,1744131087731,-745.57,0.00027945,2]
[357531547,1744131087740,-500.0,0.00027945,2]
[357531548,1744131087750,-1043.21,0.00027945,2]
[357531549,1744131087759,-812.8,0.00027945,2]
[357531550,1744131087769,-500.0,0.00027945,2]
[357531551,1744131087778,-500.0,0.00027945,2]
[357531552,1744131087792,-500.0,0.00027945,2]
[357531553,1744131087802,-315.34112085,0.00027945,2]
[357531554,1744131087812,-836.32,0.00027945,2]
[357531555,1744131087821,-813.0,0.00027945,2]
[357531556,1744131087831,-500.0,0.00027945,2]
[357531557,1744131087840,-500.0,0.00027945,2]
[357531558,1744131087849,-500.0,0.00027945,2]
[357531559,1744131087859,-500.0,0.00027945,2]
[357531560,1744131087868,-500.0,0.00027945,2]
[357531561,1744131087878,-500.0,0.00027945,2]
[357531562,1744131087887,-684.15,0.00027945,2]
[357531563,1744131087896,-1564.46,0.00027945,2]
[357531564,1744131087906,-984.76,0.00027945,2]
[357531565,1744131087915,-506.03577823,0.00027945,2]
[357531566,1744131087924,-615.97,0.00027945,2]
[357531567,1744131087933,-536.30241298,0.00027945,2]
[357531568,1744131087942,-630.49,0.00027945,2]
[357531569,1744131087952,-780.29,0.00027945,2]
[357531570,1744131087962,-500.0,0.00027945,2]
[357531571,1744131087972,-794.86,0.00027945,2]
[357531572,1744131087981,-6319.24,0.00027945,2]
[357531573,1744131087992,-918.03,0.00027945,2]
[357531574,1744131088002,-929.59,0.00027945,2]
[357531575,1744131088011,-1679.19,0.00027945,2]
[357531576,1744131088021,-660.39,0.00027945,2]
[357531577,1744131088031,-500.0,0.00027945,2]
[357531578,1744131088043,-500.0,0.00027945,2]
[357531579,1744131088052,-500.0,0.00027945,2]
[357531580,1744131088061,-639.27,0.00027945,2]
[357531581,1744131088074,-205.43132185,0.00027945,2]
[357531582,1744131088084,-500.0,0.00027945,2]
[357531583,1744131088094,-500.0,0.00027945,2]
[357531584,1744131088103,-500.0,0.00027945,2]
[357531585,1744131088115,-590.80579744,0.00027945,2]
[357531586,1744131088124,-725.42,0.00027945,2]
[357531587,1744131088134,-751.14,0.00027945,2]
[357531588,1744131088143,-500.0,0.00027945,2]
[357531589,1744131088152,-500.0,0.00027945,2]
[357531590,1744131088162,-500.0,0.00027945,2]
[357531591,1744131088172,-1183.67,0.00027945,2]
[357531592,1744131088181,-1092.38,0.00027945,2]
[357531593,1744131088190,-964.81,0.00027945,2]
[357531594,1744131088199,-500.0,0.00027945,2]
[357531595,1744131088209,-872.95,0.00027945,2]
[357531596,1744131088219,-500.0,0.00027973,5]
[357531597,1744131088228,-150.0,0.00028218,2]
[357531598,1744131088237,-500.0,0.00028218,2]
[357531599,1744131088247,-500.0,0.00028218,2]
[357531600,1744131088256,-500.0,0.00028218,2]
[357531601,1744131088266,-698.53,0.00028218,2]
[357531602,1744131088275,-698.53,0.00028218,2]
[357531603,1744131088287,-698.53,0.00028218,2]
[357531604,1744131088297,-500.0,0.00028218,2]
[357531605,1744131088307,-500.0,0.00028218,2]
[357531606,1744131088322,-500.0,0.00028218,2]
[357531607,1744131088333,-500.0,0.00028218,2]
[357531608,1744131088343,-500.0,0.00028219,2]
[357531609,1744131088354,-632.287656,0.00028219,2]
[357531610,1744131088364,-662.496625,0.00028219,2]
[357531611,1744131088374,-500.0,0.00028219,2]
[357531612,1744131088384,-500.0,0.00028219,2]
[357531613,1744131088394,-508.03612268,0.00028219,2]
[357531614,1744131088404,-500.0,0.00028219,2]
[357531615,1744131088414,-500.0,0.00028219,2]
[357531616,1744131088424,-356.73104146,0.00028219,2]
[357531617,1744131088434,-500.0,0.00028219,2]
[357531618,1744131088444,-500.0,0.00028219,2]
[357531619,1744131088454,-500.0,0.00028219,2]
[357531620,1744131088464,-500.0,0.00028219,2]
[357531621,1744131088474,-500.0,0.00028219,2]
[357531622,1744131088483,-521.99,0.00028219,2]
[357531623,1744131088493,-1012.34,0.00028219,2]
[357531624,1744131088503,-500.0,0.00028219,2]
[357531625,1744131088513,-500.0,0.00028219,2]
[357531626,1744131088524,-500.0,0.00028219,2]
[357531627,1744131088535,-500.0,0.00028219,2]
[357531628,1744131088545,-500.0,0.00028219,2]
[357531629,1744131088555,-500.0,0.00028219,2]
[357531630,1744131088566,-500.0,0.00028219,2]
[357531631,1744131088576,-1008.75,0.00028219,2]
[357531632,1744131088586,-500.0,0.00028219,2]
[357531633,1744131088596,-500.0,0.00028219,2]
[357531634,1744131088606,-572.69,0.00028219,2]
[357531635,1744131088616,-500.0,0.00028219,2]
[357531636,1744131088626,-938.36,0.00028219,2]
[357531637,1744131088636,-500.0,0.00028219,2]
[357531638,1744131088646,-500.0,0.00028219,2]
[357531639,1744131088655,-500.0,0.00028219,2]
[357531640,1744131088666,-500.0,0.00028219,2]
[357531641,1744131088677,-799.85,0.00028219,2]
[357531642,1744131088686,-500.0,0.00028219,2]
[357531643,1744131088696,-204.8084884,0.00028219,2]
[357531644,1744131088705,-500.0,0.00028219,2]
[357531645,1744131088715,-500.0,0.00028219,2]
[357531646,1744131088725,-500.0,0.00028219,2]
[357531647,1744131088735,-500.0,0.00028219,2]
[357531648,1744131088744,-500.0,0.00028219,2]
[357531649,1744131088754,-500.0,0.00028219,2]
[357531650,1744131088763,-500.0,0.00028219,2]
[357531651,1744131088773,-591.95751443,0.00028219,2]
[357531652,1744131088782,-500.0,0.00028219,2]
[357531653,1744131088795,-500.0,0.00028219,2]
[357531654,1744131088804,-500.0,0.00028219,2]
[357531655,1744131088813,-500.0,0.00028219,2]
[357531656,1744131088822,-936.4,0.00028219,2]
[357531657,1744131088832,-500.0,0.00028219,2]
[357531658,1744131088841,-500.0,0.00028219,2]
[357531659,1744131088850,-500.0,0.00028219,2]
[357531660,1744131088860,-500.0,0.00028219,2]
[357531661,1744131088872,-736.0,0.00028219,2]
[357531662,1744131088883,-500.0,0.00028219,2]
[357531663,1744131088893,-531.44576873,0.00028219,2]
[357531664,1744131088903,-500.0,0.00028219,2]
[357531665,1744131088912,-550.93,0.00028219,2]
[357531666,1744131088927,-500.0,0.00028219,2]
[357531667,1744131088936,-500.0,0.00028219,2]
[357531668,1744131088945,-533.09652589,0.00028219,2]
[357531669,1744131088955,-500.0,0.00028219,2]
[357531670,1744131088964,-500.0,0.00028219,2]
[357531671,1744131088974,-621.25,0.00028219,2]
[357531672,1744131088983,-500.0,0.00028219,2]
[357531673,1744131088992,-500.0,0.00028219,2]
[357531674,1744131089002,-500.0,0.00028219,2]
[357531675,1744131089010,-500.0,0.00028219,2]
[357531676,1744131089020,-500.0,0.00028219,2]
[357531677,1744131089029,-500.0,0.00028219,2]
[357531678,1744131089040,-500.0,0.00028219,2]
[357531679,1744131089050,-1509.4,0.00028219,2]
[357531680,1744131089062,-768.18,0.00028219,2]
[357531681,1744131089075,-500.0,0.00028219,2]
[357531682,1744131089092,-500.0,0.00028219,2]
[357531683,1744131089102,-500.0,0.00028219,2]
[357531684,1744131089111,-500.0,0.00028219,2]
[357531685,1744131089121,-500.0,0.00028219,2]
[357531686,1744131089134,-500.0,0.00028219,2]
[357531687,1744131089143,-611.70184609,0.00028219,2]
[357531688,1744131089152,-500.0,0.00028219,2]
[357531689,1744131089162,-734.29,0.00028219,2]
[357531690,1744131089172,-500.0,0.00028219,2]
[357531691,1744131089182,-500.0,0.00028219,2]
[357531692,1744131089192,-500.0,0.00028219,2]
[357531693,1744131089201,-500.0,0.00028219,2]
[357531694,1744131089211,-707.17,0.00028219,2]
[357531695,1744131089221,-500.0,0.00028219,2]
[357531696,1744131089230,-500.0,0.00028219,2]
[357531697,1744131089239,-500.0,0.00028219,2]
[357531698,1744131089249,-500.0,0.00028219,2]
[357531699,1744131089259,-500.0,0.00028219,2]
[357531700,1744131089268,-509.41,0.00028219,2]
[357531701,1744131089277,-500.0,0.00028219,2]
[357531702,1744131089286,-500.0,0.00028219,2]
[357531703,1744131089296,-589.7065979,0.00028219,2]
[357531704,1744131089306,-500.0,0.00028219,2]
[357531705,1744131089320,-1220.84,0.00028219,2]
[357531706,1744131089331,-500.0,0.00028219,2]
[357531707,1744131089342,-500.0,0.00028219,2]
[357531708,1744131089352,-500.0,0.00028219,2]
[357531709,1744131089363,-500.0,0.00028219,2]
[357531710,1744131089373,-500.0,0.00028219,2]
[357531711,1744131089384,-500.0,0.00028219,2]
[357531712,1744131089394,-500.0,0.00028219,2]
[357531713,1744131089404,-500.0,0.00028219,2]
[357531714,1744131089414,-500.0,0.00028219,2]
[357531715,1744131089423,-614.96544175,0.00028219,2]
[357531716,1744131089434,-571.81371497,0.00028219,2]
[357531717,1744131089444,-500.0,0.00028219,2]
[357531718,1744131089453,-500.0,0.00028219,2]
[357531719,1744131089463,-500.0,0.00028219,2]
[357531720,1744131089474,-500.0,0.00028219,2]
[357531721,1744131089484,-500.0,0.00028219,2]
[357531722,1744131089494,-500.0,0.00028219,2]
[357531723,1744131089503,-545.03,0.00028219,2]
[357531724,1744131089513,-500.0,0.00028219,2]
[357531725,1744131089523,-500.0,0.00028219,2]
[357531726,1744131089533,-500.0,0.00028219,2]
[357531727,1744131089543,-500.0,0.00028219,2]
[357531728,1744131089553,-500.0,0.00028219,2]
[357531729,1744131089563,-500.0,0.00028219,2]
[357531730,1744131089573,-500.0,0.00028219,2]
[357531731,1744131089583,-500.0,0.00028219,2]
[357531732,1744131089593,-500.0,0.00028219,2]
[357531733,1744131089603,-500.0,0.00028219,2]
[357531734,1744131089612,-1019.54,0.00028219,2]
[357531735,1744131089622,-1644.68,0.00028219,2]
[357531736,1744131089634,-538.21,0.00028219,2]
[357531737,1744131089643,-500.0,0.00028219,2]
[357531738,1744131089653,-734.05,0.00028219,2]
[357531739,1744131089663,-500.0,0.00028219,2]
[357531740,1744131089673,-500.0,0.00028219,2]
[357531741,1744131089683,-500.0,0.00028219,2]
[357531742,1744131089693,-1425.74,0.00028219,2]
[357531743,1744131089702,-161.76569944,0.00028219,2]
[357531744,1744131089712,-512.03191811,0.00028219,2]
[357531745,1744131089722,-1187.81,0.00028219,2]
[357531746,1744131089732,-500.0,0.00028219,2]
[357531747,1744131089742,-500.0,0.00028219,2]
[357531748,1744131089751,-500.0,0.00028219,2]
[357531749,1744131089761,-500.0,0.00028219,2]
[357531750,1744131089771,-500.0,0.00028219,2]
[357531751,1744131089781,-1273.1,0.00028219,2]
[357531752,1744131089793,-500.0,0.00028219,2]
[357531753,1744131089803,-526.97616569,0.00028219,2]
[357531754,1744131089814,-1048.09,0.00028219,2]
[357531755,1744131089824,-500.0,0.00028219,2]
[357531756,1744131089834,-531.84,0.00028219,2]
[357531757,1744131089844,-500.0,0.00028219,2]
[357531758,1744131089854,-640.3059355,0.00028219,2]
[357531759,1744131089864,-500.0,0.00028219,2]
[357531760,1744131089874,-1739.87,0.00028219,2]
[357531761,1744131089883,-500.0,0.00028219,2]
[357531762,1744131089893,-686.22,0.00028219,2]
[357531763,1744131089903,-643.82,0.00028219,2]
[357531764,1744131089914,-589.26,0.00028219,2]
[357531765,1744131089924,-530.29,0.00028219,2]
[357531766,1744131089934,-913.6,0.00028219,2]
[357531767,1744131089944,-500.0,0.00028219,2]
[357531768,1744131089954,-500.0,0.00028219,2]
[357531769,1744131089964,-541.35,0.00028219,2]
[357531770,1744131089974,-500.0,0.00028219,2]
[357531771,1744131089984,-500.0,0.00028219,2]
[357531772,1744131089995,-500.0,0.00028219,2]
[357531773,1744131090005,-524.83,0.00028219,2]
[357531774,1744131090015,-853.97,0.00028219,2]
[357531775,1744131090025,-500.0,0.00028219,2]
[357531776,1744131090036,-500.0,0.00028219,2]
[357531777,1744131090046,-500.0,0.00028219,2]
[357531778,1744131090056,-500.0,0.00028219,2]
[357531779,1744131090067,-500.0,0.00028219,2]
[357531780,1744131090077,-1206.08,0.00028219,2]
[357531781,1744131090091,-500.0,0.00028219,2]
[357531782,1744131090101,-500.0,0.00028219,2]
[357531783,1744131090111,-500.0,0.00028219,2]
[357531784,1744131090121,-633.22396456,0.00028219,2]
[357531785,1744131090131,-839.17,0.00028219,2]
[357531786,1744131090141,-500.0,0.00028219,2]
[357531787,1744131090151,-500.0,0.00028219,2]
[357531788,1744131090162,-500.0,0.00028219,2]
[357531789,1744131090172,-500.0,0.00028219,2]
[357531790,1744131090182,-1079.35,0.00028219,2]
[357531791,1744131090192,-500.0,0.00028219,2]
[357531792,1744131090202,-500.0,0.00028219,2]
[357531793,1744131090211,-500.0,0.00028219,2]
[357531794,1744131090221,-500.0,0.00028219,2]
[357531795,1744131090230,-500.0,0.00028219,2]
[357531796,1744131090240,-646.6,0.00028219,2]
[357531797,1744131090250,-500.0,0.00028219,2]
[357531798,1744131090260,-500.0,0.00028219,2]
[357531799,1744131090270,-1392.68,0.00028219,2]
[357531800,1744131090279,-1047.48,0.00028219,2]
[357531801,1744131090291,-1013.5,0.00028219,2]
[357531802,1744131090301,-500.0,0.00028219,2]
[357531803,1744131090311,-500.0,0.00028219,2]
[357531804,1744131090321,-500.0,0.00028219,2]
[357531805,1744131090331,-1138.94,0.00028219,2]
[357531806,1744131090341,-500.0,0.00028219,2]
[357531807,1744131090351,-500.0,0.00028219,2]
[357531808,1744131090362,-500.0,0.00028219,2]
[357531809,1744131090372,-536.23749807,0.00028219,2]
[357531810,1744131090382,-571.65,0.00028219,2]
[357531811,1744131090392,-500.0,0.00028219,2]
[357531812,1744131090402,-500.0,0.00028219,2]
[357531813,1744131090412,-500.0,0.00028219,2]
[357531814,1744131090421,-500.0,0.00028219,2]
[357531815,1744131090431,-985.93,0.00028219,2]
[357531816,1744131090441,-500.0,0.00028219,2]
[357531817,1744131090450,-500.0,0.00028219,2]
[357531818,1744131090460,-500.0,0.00028219,2]
[357531819,1744131090470,-500.0,0.00028219,2]
[357531820,1744131090480,-500.0,0.00028219,2]
[357531821,1744131090490,-500.0,0.00028219,2]